Cogmind - Beta 16 *** ADVENTURER MODE // 2026.01.27 @ 12:02:57 Player: Gder Result: Escaped! Performance ------------- Evolutions (9) 4500 Regions Visited (16) 3200 Robots Destroyed (193) 965 Value Destroyed (5933) 5933 Prototype IDs (47) 940 Alien Tech Used (0) 0 Bonus (3394) 3394 TOTAL SCORE: 18932 Bonus ------- Follower Combat Kills 274 Aligned with FarCom 300 Win 3000 Friendly Fire -180 Cogmind --------- Core Integrity 1501/1600 Matter 468/500 Energy 176/200 System Corruption 6% Temperature Cool (32) Movement Flying (31) Location To Epsilon Eridani Parts ------- > --- POWER (2) -------- Micro Antimatter Reactor Micro Antimatter Reactor > --- PROPULSION (8) --- Nuclear Pulse Array Nuclear Pulse Array Nuclear Pulse Array Nuclear Pulse Array > --- UTILITY (13) ----- Medium Storage Unit High-capacity Matter Pod Structural Scanner Advanced Visual Processing Unit Advanced Signal Interpreter Advanced Terrain Scan Processor Advanced Actuator Array Advanced Transmission Jammer Layered Light Armor Plating Hacking Suite Advanced Hacking Suite Authchip [Propulsion] > --- WEAPON (2) ------- Impact Mace Plasma Lance > --- INVENTORY (10) --- Light Quantum Reactor Improved Cesium-ion Thruster Cooled VTOL Module Cooled Q-thruster Enhanced Nova Cannon Mini Assault Cannon Hardcell Cannon Hardcell Cannon Peak State ------------ > --- POWER ------------ Light Antimatter Reactor Light Antimatter Reactor > --- PROPULSION ------- Nuclear Pulse Array Nuclear Pulse Array Nuclear Pulse Array Nuclear Pulse Array > --- UTILITY ---------- Medium Storage Unit Structural Scanner Advanced Visual Processing Unit Improved Terrain Scanner Advanced Terrain Scan Processor Advanced Melee Analysis Suite Experimental Core Analyzer Advanced Actuator Array Advanced Transmission Jammer Cloaking Device Advanced Hacking Suite > --- WEAPON ----------- Hardcell Cannon Plasma Lance > --- INVENTORY -------- Light Quantum Reactor Improved Cesium-ion Thruster Cooled VTOL Module Cooled Q-thruster High-capacity Matter Pod Advanced Signal Interpreter Improved Medium Armor Plating Authchip [Propulsion] Mini Assault Cannon Impact Mace [Rating: 134] Favorites ----------- Power Ion Engine Engine Ion Engine Power Core Micro Fission Core Reactor Light Antimatter Reactor Propulsion Improved Carbon-fiber Leg Treads Light Treads Leg Improved Carbon-fiber Leg Wheel Wheel Flight Unit Cooled VTOL Module Utility High-capacity Storage Unit Device Structural Scanner Storage High-capacity Storage Unit Processor Advanced Targeting Computer Hackware Hacking Suite Protection Hardened Medium Armor Plating Weapon Mini Assault Cannon Energy Gun Medium Laser Ballistic Gun Gauss Rifle Ballistic Cannon Mini Assault Cannon Launcher Mini Grenade Launcher Special Weapon Mining Laser Impact Weapon Impact Mace Slashing Weapon Chainsword Piercing Weapon Plasma Lance Build | -11 -10 -10 -10 -9 -8 -7 -6 -6 -6 -5 -4 -4 -4 -3 -2 -1 ------- Run | Yrd Mat Min Exi Min Mat Fac Fac Low Low Fac Fac Was Fac Res Res Acc Slots Evolved 18 | . . . . . 4 2 2 . . 2 2 . . 2 2 2 Power 1 | . . . . . . . . . . 1 . . . . . . Propulsion 6 | . . . . . 2 1 1 . . 1 . . . 1 . . Utility 11 | . . . . . 2 1 1 . . . 2 . . 1 2 2 Weapon . | . . . . . . . . . . . . . . . . . Parts Attached 137 | 8 9 2 1 2 22 20 11 4 1 16 3 . 20 6 5 7 Power 23 | 1 4 . . . 4 1 . 2 . 2 . . 4 2 . 3 Engine 10 | 1 4 . . . 1 1 . 1 . 1 . . 1 . . . Core 7 | . . . . . 3 . . 1 . 1 . . 2 . . . Reactor 6 | . . . . . . . . . . . . . 1 2 . 3 Propulsion 34 | 3 1 1 1 1 6 6 3 2 . 3 . . 4 2 1 . Treads 4 | 1 1 . 1 . 1 . . . . . . . . . . . Leg 12 | . . . . . 4 4 3 1 . . . . . . . . Wheel 6 | 2 . 1 . 1 1 . . 1 . . . . . . . . Hover . | . . . . . . . . . . . . . . . . . Flight 12 | . . . . . . 2 . . . 3 . . 4 2 1 . Utility 57 | 2 2 . . . 7 6 7 . 1 10 3 . 10 2 4 3 Device 17 | 1 . . . . . 2 3 . 1 2 1 . 5 2 . . Storage 6 | 1 2 . . . . . . . . 1 . . 1 . . 1 Processor 14 | . . . . . 3 . 3 . . 2 1 . 2 . 3 . Hackware 10 | . . . . . 1 1 . . . 4 1 . 1 . 1 1 Protection 10 | . . . . . 3 3 1 . . 1 . . 1 . . 1 Artifact . | . . . . . . . . . . . . . . . . . Weapon 23 | 2 2 1 . 1 5 7 1 . . 1 . . 2 . . 1 Energy Gun 2 | 2 . . . . . . . . . . . . . . . . Energy Cannon . | . . . . . . . . . . . . . . . . . Ballistic Gun 7 | . . . . . 3 3 1 . . . . . . . . . Ballistic Cannon 5 | . . . . . 1 2 . . . . . . 1 . . 1 Launcher 3 | . . 1 . 1 1 . . . . . . . . . . . Special Weapon 2 | . 2 . . . . . . . . . . . . . . . Impact Weapon 2 | . . . . . . 2 . . . . . . . . . . Slashing Weapon 1 | . . . . . . . . . . 1 . . . . . . Piercing Weapon 1 | . . . . . . . . . . . . . 1 . . . Special Melee Weapon . | . . . . . . . . . . . . . . . . . Unidentified Prototypes 11 | . . . . . . 4 . . . 2 1 . 2 . 2 . Parts Lost 19 | . . . . . . . 2 6 1 5 . . 2 . . 3 Power 3 | . . . . . . . . . . 1 . . 1 . . 1 Propulsion 9 | . . . . . . . . 5 . 3 . . 1 . . . Utility 6 | . . . . . . . 2 1 . 1 . . . . . 2 Weapon 1 | . . . . . . . . . 1 . . . . . . . Highest Loss Streak 5 | . . . . . . . 1 3 1 5 . . 1 . . 3 To Critical Strikes . | . . . . . . . . . . . . . . . . . Average Backups 15 | 2 9 20 18 16 15 16 16 15 15 17 16 17 15 9 9 9 Power . | . 1 1 1 1 . . . 1 1 . . . . . 1 . Propulsion 3 | 1 2 4 4 3 3 5 5 5 5 1 3 4 3 1 3 3 Utility 6 | . 3 7 8 8 8 6 5 5 5 10 9 9 9 5 3 2 Weapon 4 | . 3 7 5 3 3 4 5 4 4 5 4 4 2 2 2 3 Tool/Special . | . . . . . . . . . . . . . . . . . Unused Backups 48 | . 2 2 4 3 8 7 1 1 . 7 5 . 4 2 . 2 Power 1 | . . . . . 1 . . . . . . . . . . . Propulsion 9 | . 1 . . 1 1 3 1 . . . 1 . 1 . . . Utility 20 | . 1 1 1 1 4 1 . . . 5 3 . 1 2 . . Weapon 18 | . . 1 3 1 2 3 . 1 . 2 1 . 2 . . 2 Tool/Special . | . . . . . . . . . . . . . . . . . Average Slot Usage (%) 90 | . 100 100 80 100 98 98 94 81 78 79 83 84 83 83 78 74 Engine 5 | . 14 14 14 14 1 2 6 3 6 4 5 5 2 . . . Core 3 | . . . . . 7 4 . 2 . 4 5 5 6 2 . . Treads 3 | . 14 14 14 14 2 . . . . . . . . . . . Leg 15 | . . . . . 28 34 39 20 20 . . . . . . . Wheel 3 | . 14 14 14 14 3 2 . . . . . . . . . . Flight 5 | . . . . . . . . . . 21 21 21 21 21 17 16 Device 8 | . 14 14 14 14 1 7 6 6 11 4 9 10 10 22 21 16 Storage 7 | . 14 14 14 14 9 7 6 6 6 5 5 5 5 4 4 4 Processor 8 | . . . . . 8 7 11 20 20 7 10 10 10 9 12 12 Hackware 5 | . . . . . 8 7 2 . . 14 15 15 13 4 5 8 Protection 3 | . . . . . 7 6 6 6 . . . . . . . 1 Energy Gun 4 | . 26 27 8 14 . . . . . . . . . . . . Ballistic Gun 3 | . . . . . 16 6 6 . 4 . . . . . . . Ballistic Cannon 4 | . . . . . . 6 4 12 8 4 5 5 5 4 4 4 Peak Build Rating 134 | 7 9 10 12 14 39 52 58 57 48 96 108 105 119 118 134 130 Average Rating 54 | 5 7 9 9 13 34 46 53 47 47 87 102 105 110 112 126 126 On Entrance 55 | . 7 9 9 12 14 38 50 58 45 48 93 105 105 99 118 126 Avg Prop Armor Cover (%) 10 | 14 12 13 16 14 9 3 . 16 . 1 . . . 2 . . Naked Turns . | . . . . . . . . . . . . . . . . . Heaviest Build 72 | 12 49 49 49 49 58 70 71 72 68 66 62 62 64 58 58 67 Greatest Support 106 | 16 10 10 10 12 72 84 106 106 55 66 66 66 66 60 60 60 Greatest Overweight (x) 6 | 1 4 4 4 4 4 1 . 6 1 1 . . 1 1 1 1 Average Overweight (x) . | . 3 4 4 4 . . . 1 1 . . . . . . . Largest Inventory Capacity 20 | 8 20 20 20 20 20 20 20 20 20 20 20 20 20 10 10 10 Average Capacity 19 | 7 19 20 20 20 20 20 20 20 20 20 20 20 18 10 10 10 Most Carried 20 | 4 20 20 20 20 20 20 20 20 20 20 20 20 20 10 10 10 Average Carried 18 | 2 10 19 19 19 19 19 19 19 19 18 19 20 18 9 9 9 Final Capacity 20 | 8 20 20 20 20 20 20 20 20 20 20 20 20 10 10 10 10 Final Carried 20 | 4 20 20 20 20 20 20 20 20 19 20 20 20 10 10 9 8 Class Distribution -------------------- 32% | Hacker-Mutant 20% | Mutant 17% | Scavenger-Mutant 16% | Hacker-Scout 4% | Scavenger-Ninja 3% | Hacker-Ninja Dominant Class ---------------- Mutant | -10/Materials Mutant | -10/Mines Mutant | -10/Exiles Mutant | -9/Mines Hacker-Mutant | -8/Materials Hacker-Mutant | -7/Factory Scavenger-Mutant | -6/Factory Scavenger-Mutant | -6/Lower Caves Scavenger-Mutant | -6/Lower Caves Hacker-Scout | -5/Factory Hacker-Scout | -4/Factory Hacker-Scout | -4/Waste Hacker-Scout | -4/Factory Scavenger-Ninja | -3/Research Scavenger-Ninja | -2/Research Hacker-Ninja | -1/Access Resources | -11 -10 -10 -10 -9 -8 -7 -6 -6 -6 -5 -4 -4 -4 -3 -2 -1 ----------- Run | Yrd Mat Min Exi Min Mat Fac Fac Low Low Fac Fac Was Fac Res Res Acc Matter Collected 5467 | 280 215 85 20 280 799 1160 602 450 46 378 38 . 722 119 . 273 Remotely . | . . . . . . . . . . . . . . . . . Salvage Created 8035 | 62 559 197 . 271 900 1318 859 282 48 1009 477 . 1384 82 . 587 Parts 379 | 5 29 13 . 30 53 55 35 15 2 37 10 . 59 4 . 32 Haulers Intercepted 16 | . 1 . . . . 4 4 . . 2 1 . 4 . . . Recyclers Shooed 9 | . 1 . . . . 3 1 . . 1 1 . 2 . . . Parts Field Recycled . | . . . . . . . . . . . . . . . . . Retrieved Matter . | . . . . . . . . . . . . . . . . . Parts Self-Destructed 11 | . . . . . . . . 9 2 . . . . . . . Prevented 1 | . . . . . . . . 1 . . . . . . . . Parts Restored . | . . . . . . . . . . . . . . . . . Kills | -11 -10 -10 -10 -9 -8 -7 -6 -6 -6 -5 -4 -4 -4 -3 -2 -1 ------- Run | Yrd Mat Min Exi Min Mat Fac Fac Low Low Fac Fac Was Fac Res Res Acc Combat Hostiles Destroyed 105 | . 6 5 . 14 18 18 6 18 1 3 1 . 12 . . 3 Melee 13 | . . . . . . . . . . 1 1 . 8 . . 3 Guns 32 | . 5 3 . . 16 6 1 . . 1 . . . . . . Cannons 29 | . . . . . 1 11 5 6 1 1 . . 4 . . . AOE 30 | . . 2 . 14 1 1 . 12 . . . . . . . . Classes Destroyed 15 | 1 6 1 . 2 2 2 . . . 1 . . . . . . Worker 18 | . 3 2 . 2 . 4 . . . 2 1 . 3 . . 1 Builder 10 | . 1 1 . . . 3 1 . . 1 . . 2 . . 1 Tunneler 10 | 3 . . . 1 . 4 . . . 1 . . . . . 1 Hauler 16 | . 1 . . . . 4 4 . . 2 1 . 4 . . . Recycler 17 | . 2 . . . . 3 2 . . 4 2 . 2 . . 2 Mechanic 2 | . . . . . . . . . . 2 . . . . . . Operator 3 | . . . . . 1 1 . . . 1 . . . . . . Watcher 12 | . 1 . . . 1 3 . . . 2 . . 2 2 . 1 Swarmer 21 | . . 2 . 3 1 . . 10 . . . . 5 . . . Grunt 39 | . 6 3 . 8 11 3 . 5 . . 1 . 2 . . . Brawler 4 | . . . . 2 . . . 2 . . . . . . . . Duelist 2 | . . . . 1 1 . . . . . . . . . . . Sentry 17 | . . . . . 5 8 1 1 1 . . . 1 . . . Hunter 7 | . . . . . . 2 3 . . 2 . . . . . . Programmer 15 | . . . . . . 5 2 . . 1 . . 4 . . 3 Best Kill Streak 9 | 3 6 3 . 5 3 5 2 9 1 4 3 . 5 2 . 7 Combat Bots Only 9 | . 2 2 . 3 3 3 2 9 1 2 1 . 5 . . 3 Max Kills in Single Turn 3 | 1 1 1 . 3 1 3 1 2 1 1 1 . 2 1 . 1 Gunslinging . | . . . . . . . . . . . . . . . . . Exploded 2 | . . 1 . 2 1 1 . 2 . . . . . . . . Melee 1 | . . . . . . . . . . 1 1 . 1 . . 1 Uniques/NPCs Destroyed . | . . . . . . . . . . . . . . . . . Combat | -11 -10 -10 -10 -9 -8 -7 -6 -6 -6 -5 -4 -4 -4 -3 -2 -1 -------- Run | Yrd Mat Min Exi Min Mat Fac Fac Low Low Fac Fac Was Fac Res Res Acc Hostile Shots Fired 812 | . 24 29 . 7 78 199 71 95 27 94 . . 135 . . 53 Missed 292 | . 7 14 . 4 17 90 24 30 12 33 . . 49 . . 12 Hits 520 | . 17 15 . 3 61 109 47 65 15 61 . . 86 . . 41 Melee 1 | . . . . . . . . 1 . . . . . . . . Projectile 519 | . 17 15 . 3 61 109 47 64 15 61 . . 86 . . 41 AOE 3 | . . . . . . . . . . . . . 3 . . . Critical Strikes 19 | . . 1 . . 4 1 1 1 . 1 . . 5 . . 5 Part Disruptions 1 | . . . . . . . . . . . . . . . . 1 Damage Taken 6588 | . 169 132 . 67 720 793 496 1029 69 849 . . 1430 . . 834 Core 809 | . 41 28 . 21 81 51 37 114 4 92 . . 241 . . 99 Absorbed by Shields . | . . . . . . . . . . . . . . . . . Ignored by Resistances 1886 | . 51 42 . 19 205 239 152 288 24 240 . . 405 . . 221 Regen/Repaired (Parts) 659 | . . . . . 154 107 92 . . 158 . . 148 . . . Core Remaining (%) 88 | 100 . . . 64 85 92 . . 81 90 . . 79 100 100 93 Volleys Fired 378 | 3 53 20 . 27 69 89 42 26 2 17 3 . 23 1 2 1 Largest 2 | 2 2 2 . 1 2 2 2 2 2 2 1 . 2 1 1 1 Hottest 100 | 90 100 90 . 50 60 68 68 80 80 68 40 . 95 55 55 55 Shots Fired 667 | 6 96 39 . 28 135 175 84 35 4 30 3 1 27 1 2 1 Gun 403 | 6 87 36 . 3 128 86 42 1 1 13 . . . . . . Cannon 207 | . . . . . 4 89 42 17 3 17 3 1 27 1 2 1 Launcher 48 | . . 3 . 25 3 . . 17 . . . . . . . . Special 9 | . 9 . . . . . . . . . . . . . . . Kinetic 478 | . . . . . 132 175 84 18 4 30 3 1 27 1 2 1 Thermal 141 | 6 96 36 . 3 . . . . . . . . . . . . Explosive 48 | . . 3 . 25 3 . . 17 . . . . . . . . Electromagnetic . | . . . . . . . . . . . . . . . . . Robot Hit Streak 56 | 5 35 13 . 14 56 29 15 16 20 14 . 8 3 . . . Robot Miss Streak 2 | . 1 2 . 1 1 2 2 1 . 2 . . 1 . . . Penetration Max 1 | . . . . . . 1 1 . . 1 . . . . . . Secondary Targets 3 | . . . . . 3 . . . . . . . . . . . Max Gunslinging Chain 1 | . . . . . 1 . . . . . . . . . . . Shots Hit Robots 614 | 5 71 31 . 11 111 147 71 20 4 45 19 1 53 4 . 21 Core Hits 288 | 3 25 14 . 30 44 53 25 33 2 16 5 . 26 2 . 10 Critical Kills 1 | . . . . . . . . . . 1 . . . . . . Critical Parts Destroyed 7 | . . . . . 1 4 1 . . 1 . . . . . . Critical Strikes 51 | . 6 . . . 2 16 8 1 . 5 3 . 6 . . 4 Burn 6 | . 6 . . . . . . . . . . . . . . . Destroy 4 | . . . . . 1 1 1 . . 1 . . . . . . Blast 21 | . . . . . 1 12 7 1 . . . . . . . . Smash 4 | . . . . . . 3 . . . 1 . . . . . . Sever 9 | . . . . . . . . . . 3 3 . 3 . . . Impale 7 | . . . . . . . . . . . . . 3 . . 4 Melee Attacks 265 | . . . . . . 7 11 . . 63 26 . 100 16 7 35 Impact 26 | . . . . . . 7 11 . . 8 . . . . . . Slashing 94 | . . . . . . . . . . 55 26 . 13 . . . Piercing 145 | . . . . . . . . . . . . . 87 16 7 35 Sneak Attacks 53 | . . . . . . 7 1 . . 14 11 . 12 1 . 7 Combat Hostiles 1 | . . . . . . . . . . . . . 1 . . . Follow-up Attacks . | . . . . . . . . . . . . . . . . . Damage Inflicted 21559 | 61 851 463 . 1329 2104 4640 2075 2188 93 2121 1117 29 2986 234 . 1268 Guns 5538 | 61 851 351 . 25 1778 1512 758 . 17 185 . . . . . . Cannons 3641 | . . . . . 73 1822 896 313 76 208 . 29 224 . . . Explosions 4125 | . . 112 . 1304 170 459 205 1875 . . . . . . . . Melee 7975 | . . . . . . 749 117 . . 1728 1117 . 2762 234 . 1268 Ramming 280 | . . . . . 83 98 99 . . . . . . . . . Kinetic 7891 | . . . . . 1851 3334 1654 313 93 393 . 29 224 . . . Thermal 1747 | 61 851 351 . 25 . 459 . . . . . . . . . . Explosive 3666 | . . 112 . 1304 170 . 205 1875 . . . . . . . . Electromagnetic . | . . . . . . . . . . . . . . . . . Impact 1291 | . . . . . . 749 117 . . 425 . . . . . . Slashing 3083 | . . . . . . . . . . 1303 1117 . 663 . . . Piercing 3601 | . . . . . . . . . . . . . 2099 234 . 1268 Highest Corruption 7 | . 1 1 1 1 . 6 1 1 1 1 . 7 7 1 . 6 Average Corruption 1 | . 1 1 1 1 . 3 1 1 1 1 . 7 4 1 . 5 Corruption Purged 12 | . . . . . . 5 . . . . . . 7 . . . Corruption Blocked 2 | . . . . . . . . . . . . . 2 . . . Effects 67 | . 4 8 2 4 . 17 7 9 3 1 . 1 4 . . 7 Message Errors 9 | . 1 1 1 . . 1 . 2 1 . . . 1 . . 1 Matter Fused 17 | . 1 4 . . . 3 2 3 1 . . . 1 . . 2 Heat Flow Errors 14 | . 1 1 . 1 . 5 1 1 . 1 . . 1 . . 2 Energy Discharges 6 | . . . . 2 . 3 1 . . . . . . . . . Parts Rejected 1 | . . . . . . . . 1 . . . . . . . . Data Loss (minor) 9 | . . . 1 . . 3 2 . 1 . . . . . . 2 Data Loss (major) 3 | . 1 . . . . 1 . 1 . . . . . . . . Misfires 5 | . . 2 . 1 . . . 1 . . . 1 . . . . Alerts 3 | . . . . . . 1 1 . . . . . 1 . . . Overload Shots . | . . . . . . . . . . . . . . . . . Overflow Damage 2737 | . . . . 8 7 650 137 132 . 694 206 . 494 27 . 382 Projectiles 133 | . . . . . . 42 83 3 . 5 . . . . . . Explosions 193 | . . . . 8 . 49 7 129 . . . . . . . . Melee 2411 | . . . . . 7 559 47 . . 689 206 . 494 27 . 382 Knockbacks 27 | . . . . . 2 13 8 . . 3 . . 1 . . . Impact 5 | . . . . . 1 2 1 . . 1 . . . . . . Kinetic 21 | . . . . . 1 11 6 . . 2 . . 1 . . . Secondary 1 | . . . . . . . 1 . . . . . . . . . Self-Inflicted Damage 83 | . . . . 33 . . . 50 . . . . . . . . Shots 3 | . . . . 1 . . . 2 . . . . . . . . Rammed . | . . . . . . . . . . . . . . . . . Targets Rammed 20 | . . . . . 3 12 5 . . . . . . . . . Kicked 20 | . . . . . 3 12 5 . . . . . . . . . Crushed . | . . . . . . . . . . . . . . . . . Highest Temperature 315 | 60 284 315 . 197 70 269 206 199 11 217 . 26 93 10 8 157 Average Temperature 56 | 33 71 136 . 57 16 64 59 30 10 22 . 14 22 7 6 84 Received Heat Transfer 1535 | . 126 102 . 24 486 192 57 204 12 36 . . 287 . . 9 Siege Activations . | . . . . . . . . . . . . . . . . . Martial Activations . | . . . . . . . . . . . . . . . . . Shielding Activations . | . . . . . . . . . . . . . . . . . Robots Disrupted . | . . . . . . . . . . . . . . . . . Combat Hostiles . | . . . . . . . . . . . . . . . . . Robots Corrupted 3 | . . . . . . 1 . . . 2 . . . . . . Combat Hostiles . | . . . . . . . . . . . . . . . . . Parts Fried 16 | . . . . . . 9 . . . 7 . . . . . . Impact Corruptions 24 | . . . . . 1 12 1 . . 10 . . . . . . Robots Melted 1 | . 1 . . . . . . . . . . . . . . . Combat Hostiles 1 | . 1 . . . . . . . . . . . . . . . Parts Melted 9 | 2 6 1 . . . . . . . . . . . . . . Heat Transferred 4178 | 161 2713 930 . 74 . 300 . . . . . . . . . . Parts Sabotaged . | . . . . . . . . . . . . . . . . . Parts Stolen . | . . . . . . . . . . . . . . . . . Parts Stripped . | . . . . . . . . . . . . . . . . . Power Chain Reactions . | . . . . . . . . . . . . . . . . . Alert | -11 -10 -10 -10 -9 -8 -7 -6 -6 -6 -5 -4 -4 -4 -3 -2 -1 ------- Run | Yrd Mat Min Exi Min Mat Fac Fac Low Low Fac Fac Was Fac Res Res Acc Maximum Alert Level 1 | . . . . 1 . . . . . . . . 1 . . . Low Security (%) 99 | 100 100 100 . 93 100 100 100 . . 100 100 100 97 100 100 100 Level 1 . | . . . . 6 . . . . . . . . 2 . . . Level 2 . | . . . . . . . . . . . . . . . . . Level 3 . | . . . . . . . . . . . . . . . . . Level 4 . | . . . . . . . . . . . . . . . . . Level 5 . | . . . . . . . . . . . . . . . . . High Security . | . . . . . . . . . . . . . . . . . Max Security . | . . . . . . . . . . . . . . . . . Peak Influence 228 | 15 50 57 . 228 140 140 56 . . 141 50 6 213 112 18 56 Initial 53 | . . . . . 48 19 . . . . 35 6 . 53 18 2 Average 30 | 2 10 9 . 104 55 19 7 . . 24 25 2 45 70 4 19 Influence Increases 5399 | 15 287 159 . 464 897 857 320 453 20 502 149 . 876 125 44 231 Destroy 0b10 Robot/C 2400 | . 120 100 . 280 560 360 120 400 20 60 60 . 260 . . 60 Destroy 0b10 Robot/NC 450 | 15 40 15 . 15 20 110 35 . . 75 20 . 65 10 . 30 Destroy Leader 606 | . 34 30 . 50 152 154 58 30 . 18 12 . 52 4 . 12 Allied During Kill 65 | . . . . 14 43 . . 8 . . . . . . . . Successful Hack 472 | . 28 7 . . 28 105 42 . . 47 43 . 56 63 2 51 Select Force Hacks 120 | . 60 . . . 60 . . . . . . . . . . . Disable Machine 162 | . . . . . . 81 45 . . 18 . . 9 9 . . Destroy Structure 479 | . 5 7 . 105 19 47 20 . . 74 14 . 104 24 27 33 Partial Spotted 195 | . . . . . 15 . . . . 45 . . 75 15 15 30 Lose Combat Pursuer 450 | . . . . . . . . 15 . 165 . . 255 . . 15 Influence Decreases 5353 | 15 287 159 . 318 992 908 320 453 20 418 209 24 759 204 77 190 Entered New Map 284 | . . . . . 98 32 . . . . 49 18 . 64 20 3 Time Decay 4671 | 15 287 159 . 318 823 876 309 363 20 381 146 6 614 140 57 157 Lost Part 98 | . . . . . . . 11 50 . . . . 17 . . 20 Lost Ally 121 | . . . . . 71 . . 40 . . . . . . . 10 Purge Threat 179 | . . . . . . . . . . 37 14 . 128 . . . Squads Dispatched 51 | . 2 . . . 11 12 9 . . 4 2 . 7 1 . 3 Investigation 18 | . 2 . . . 6 3 2 . . 2 . . 2 1 . . Extermination 17 | . . . . . . 4 3 . . 2 1 . 4 . . 3 Reinforcement 12 | . . . . . 2 4 4 . . . 1 . 1 . . . Assault . | . . . . . . . . . . . . . . . . . Garrison 4 | . . . . . 3 1 . . . . . . . . . . Intercept . | . . . . . . . . . . . . . . . . . Searches Triggered . | . . . . . . . . . . . . . . . . . Construction Impeded 1 | . . . . . . 1 . . . . . . . . . . Haulers Reinforced 4 | . . . . . . 1 1 . . . 1 . 1 . . . Active Scanning Responses . | . . . . . . . . . . . . . . . . . Cargo Convoy Interrupts . | . . . . . . . . . . . . . . . . . Stealth | -11 -10 -10 -10 -9 -8 -7 -6 -6 -6 -5 -4 -4 -4 -3 -2 -1 --------- Run | Yrd Mat Min Exi Min Mat Fac Fac Low Low Fac Fac Was Fac Res Res Acc Distress Signals 13 | . . . . . 3 3 1 . . 2 . . 4 . . . Communications Jammed . | . . . . . . . . . . . . . . . . . Distress Signals . | . . . . . . . . . . . . . . . . . Times Spotted 205 | . 18 7 . 11 31 27 10 20 1 24 2 6 38 2 . 8 Peak Tracking Total 12 | . 3 3 . 3 4 3 3 9 1 10 2 6 12 2 . 4 Tactical Retreats 12 | . . . . . . . . 1 . 4 . . 6 . . 1 Traps | -11 -10 -10 -10 -9 -8 -7 -6 -6 -6 -5 -4 -4 -4 -3 -2 -1 ------- Run | Yrd Mat Min Exi Min Mat Fac Fac Low Low Fac Fac Was Fac Res Res Acc Traps Triggered 6 | . 1 . . . . 3 . . . . 1 . 1 . . . Indirectly . | . . . . . . . . . . . . . . . . . Trap Hack Attempts . | . . . . . . . . . . . . . . . . . Triggered . | . . . . . . . . . . . . . . . . . Disarmed . | . . . . . . . . . . . . . . . . . Reprogrammed . | . . . . . . . . . . . . . . . . . Reused . | . . . . . . . . . . . . . . . . . Traps Extracted . | . . . . . . . . . . . . . . . . . Installed . | . . . . . . . . . . . . . . . . . Triggered . | . . . . . . . . . . . . . . . . . Machines | -11 -10 -10 -10 -9 -8 -7 -6 -6 -6 -5 -4 -4 -4 -3 -2 -1 ---------- Run | Yrd Mat Min Exi Min Mat Fac Fac Low Low Fac Fac Was Fac Res Res Acc Machines Disabled 18 | . . . . . . 9 5 . . 2 . . 1 1 . . Max in Single Turn 4 | . . . . . . 4 2 . . 1 . . 1 1 . . Garrison Access 12 | . . . . . 1 2 1 . . 4 1 . 3 . . . Machines Repaired . | . . . . . . . . . . . . . . . . . Machines Dismantled . | . . . . . . . . . . . . . . . . . Machines Sabotaged . | . . . . . . . . . . . . . . . . . Overloaded Fab Kills . | . . . . . . . . . . . . . . . . . Hacking | -11 -10 -10 -10 -9 -8 -7 -6 -6 -6 -5 -4 -4 -4 -3 -2 -1 --------- Run | Yrd Mat Min Exi Min Mat Fac Fac Low Low Fac Fac Was Fac Res Res Acc Machines Accessed 126 | . 9 1 2 . 15 20 11 1 . 24 10 . 21 4 3 5 Terminals 76 | . 7 1 . . 9 11 8 . . 14 5 . 11 4 2 4 Fabricators 9 | . . . . . . 1 . . . 2 3 . 3 . . . Repair Stations 9 | . . . . . 1 2 1 . . 2 . . 3 . . . Recycling Units 7 | . 2 . . . 2 1 . . . 1 . . . . 1 . Scanalyzers 9 | . . . . . 2 3 . . . 1 1 . 1 . . 1 Garrison Access 13 | . . . . . 1 2 2 . . 4 1 . 3 . . . Total Hacks 335 | . 26 3 2 . 38 56 27 1 . 67 32 . 56 14 5 8 Successful 207 | . 16 2 2 . 31 33 7 1 . 40 22 . 39 9 1 4 Failed 125 | . 10 1 . . 6 22 20 . . 27 9 . 17 5 4 4 Catastrophic 22 | . 1 . . . 1 4 5 . . 3 1 . 2 4 1 . Database Lockouts 3 | . . . . . 1 1 . . . . 1 . . . . . Manual 148 | . 21 . 1 . 18 21 17 . . 29 12 . 17 7 2 3 Terminals 236 | . 23 3 . . 22 37 21 . . 48 23 . 34 14 4 7 Fabricators 14 | . . . . . . 2 . . . 4 4 . 4 . . . Repair Stations 26 | . . . . . 4 6 2 . . 3 . . 11 . . . Recycling Units 9 | . 3 . . . 2 2 . . . 1 . . . . 1 . Scanalyzers 28 | . . . . . 9 6 . . . 5 4 . 3 . . 1 Garrison Access 19 | . . . . . 1 3 4 . . 6 1 . 4 . . . Terminal Hacks 84 | . 5 2 2 . 8 8 2 1 . 20 13 . 15 6 . 2 Record 2 | . . . 1 . . . . . . . . . 1 . . . Part Schematic 4 | . . . . . . 1 . . . 1 2 . . . . . Prototype ID Bank 4 | . . . . . . . . . . 1 1 . 2 . . . Open Door 3 | . . . . . . . . 1 . 1 . . . . . 1 Level Access Points 5 | . . . . . . . . . . 1 1 . 1 1 . 1 Branch Access Points 4 | . 1 . . . 1 . . . . 1 1 . . . . . Emergency Access Points 4 | . . . . . 1 1 . . . . 1 . 1 . . . Machine Index 4 | . . . . . . . 1 . . 1 1 . 1 . . . Terminal Index 4 | . 1 . . . 1 1 . . . . . . . 1 . . Fabricator Index 1 | . . . . . . . . . . 1 . . . . . . Repair Station Index 1 | . . . . . 1 . . . . . . . . . . . Scanalyzer Index 1 | . . . . . . . . . . 1 . . . . . . Alert Level 1 | . . . . . . . . . . 1 . . . . . . Unreport Threat 5 | . . . . . . . . . . 1 2 . 2 . . . Locate Traps 7 | . . . . . 2 1 . . . 2 1 . . 1 . . Dispatch Records 6 | . . 1 . . . 2 . . . 1 . . 2 . . . Investigation Status 1 | . . . . . . . . . . 1 . . . . . . Recall Investigation 3 | . 1 . . . . . . . . 1 . . . 1 . . Recall Extermination 2 | . . . . . . . . . . 2 . . . . . . Recall Reinforcements 1 | . . . . . . . . . . . . . 1 . . . Hauler Manifests 6 | . 1 . . . 1 1 . . . 2 1 . . . . . Registered Components 4 | . 1 . . . . 1 . . . 1 . . 1 . . . Registered Prototypes 2 | . . . . . 1 . . . . . . . . 1 . . Zone Layout 8 | . . 1 . . . . 1 . . . 2 . 3 1 . . Proto ID Catalog 1 | . . . 1 . . . . . . . . . . . . . Fabricator Hacks 9 | . . . . . . 2 . . . 3 2 . 2 . . . Network Status 5 | . . . . . . . . . . 1 2 . 2 . . . Load Schematic 2 | . . . . . . 1 . . . 1 . . . . . . Build 2 | . . . . . . 1 . . . 1 . . . . . . Repair Station Hacks 21 | . . . . . 4 5 . . . 2 . . 10 . . . Scan Component 12 | . . . . . 2 3 . . . 1 . . 6 . . . Repair 9 | . . . . . 2 2 . . . 1 . . 4 . . . Recycling Unit Hacks 1 | . . . . . . 1 . . . . . . . . . . Process 1 | . . . . . . 1 . . . . . . . . . . Scanalyzer 22 | . . . . . 8 4 . . . 4 3 . 3 . . . Insert Component 1 | . . . . . 1 . . . . . . . . . . . Analyze 1 | . . . . . 1 . . . . . . . . . . . Retrieve Study 20 | . . . . . 6 4 . . . 4 3 . 3 . . . Garrison Access Hacks 12 | . . . . . 1 2 1 . . 4 1 . 3 . . . Seal Access 12 | . . . . . 1 2 1 . . 4 1 . 3 . . . Unauthorized Hacks 58 | . 11 . . . 10 11 4 . . 7 3 . 6 3 1 2 Terminals 47 | . 8 . . . 8 11 3 . . 5 2 . 4 3 1 2 Track 1 | . . . . . . 1 . . . . . . . . . . Assimilate 6 | . . . . . . . 1 . . 2 . . . 1 1 1 Botnet 20 | . 2 . . . 3 3 2 . . 3 2 . 2 2 . 1 Skim 20 | . 6 . . . 5 7 . . . . . . 2 . . . Fabricators 4 | . . . . . . . . . . 1 1 . 2 . . . Prioritize 1 | . . . . . . . . . . . . . 1 . . . Liberate 2 | . . . . . . . . . . . 1 . 1 . . . Recompile 1 | . . . . . . . . . . 1 . . . . . . Repair Stations 1 | . . . . . . . 1 . . . . . . . . . Patch 1 | . . . . . . . 1 . . . . . . . . . Recycling Units 6 | . 3 . . . 2 . . . . 1 . . . . . . Reject 2 | . 1 . . . . . . . . 1 . . . . . . Tunnel 4 | . 2 . . . 2 . . . . . . . . . . . Scanalyzers . | . . . . . . . . . . . . . . . . . Garrison Access . | . . . . . . . . . . . . . . . . . Data Cores Recovered 1 | . . . . . 1 . . . . . . . . . . . Used 1 | . . . . . 1 . . . . . . . . . . . Hacking Detections 91 | . 6 1 . . 11 18 10 . . 15 7 . 11 4 3 5 Full Trace Events 9 | . 1 . . . 1 2 1 . . 1 . . 2 1 . . Feedback Events 1 | . . . . . . . . . . . . . . 1 . . Corruption 1 | . . . . . . . . . . . . . . 1 . . Feedback Blocked . | . . . . . . . . . . . . . . . . . Robot Schematics Acquired . | . . . . . . . . . . . . . . . . . Robots Built . | . . . . . . . . . . . . . . . . . Authchips . | . . . . . . . . . . . . . . . . . Time . | . . . . . . . . . . . . . . . . . Total Robot Build Rating . | . . . . . . . . . . . . . . . . . Part Schematics Acquired 5 | . . . . . 1 1 . . . 1 2 . . . . . Parts Built 2 | . . . . . . 1 . . . 1 . . . . . . Authchips . | . . . . . . . . . . . . . . . . . Time 95 | . . . . . . 33 . . . 62 . . . . . . Total Part Build Rating 9 | . . . . . . 2 . . . 7 . . . . . . Part Studies Acquired 19 | . . . . . 5 4 . . . 4 3 . 3 . . . Parts Repaired 9 | . . . . . 2 2 . . . 1 . . 4 . . . Time 418 | . . . . . 88 82 . . . 70 . . 178 . . . Parts Recycled . | . . . . . . . . . . . . . . . . . Recycled Matter 76 | . . . . . . 76 . . . . . . . . . . Retrieved Matter . | . . . . . . . . . . . . . . . . . Retrieved Components . | . . . . . . . . . . . . . . . . . Parts Scanalyzed 1 | . . . . . 1 . . . . . . . . . . . Part Schematics Acquired 1 | . . . . . 1 . . . . . . . . . . . Parts Damaged . | . . . . . . . . . . . . . . . . . Bothacking | -11 -10 -10 -10 -9 -8 -7 -6 -6 -6 -5 -4 -4 -4 -3 -2 -1 ------------ Run | Yrd Mat Min Exi Min Mat Fac Fac Low Low Fac Fac Was Fac Res Res Acc Used RIF Installer . | . . . . . . . . . . . . . . . . . Robots Hacked . | . . . . . . . . . . . . . . . . . Non-combat . | . . . . . . . . . . . . . . . . . Combat . | . . . . . . . . . . . . . . . . . Robot Hacks Applied . | . . . . . . . . . . . . . . . . . Relay Couplers Released . | . . . . . . . . . . . . . . . . . Fabnet Peak Effective % . | . . . . . . . . . . . . . . . . . Robots Rewired 2 | . . . . . . . . 2 . . . . . . . . Allies Hacked 1 | . . . . . . . . . . . . . 1 . . . Hacks Repelled . | . . . . . . . . . . . . . . . . . Allies | -11 -10 -10 -10 -9 -8 -7 -6 -6 -6 -5 -4 -4 -4 -3 -2 -1 -------- Run | Yrd Mat Min Exi Min Mat Fac Fac Low Low Fac Fac Was Fac Res Res Acc Total Allies 14 | . . . . 4 . . . 2 . 1 3 . 3 . . 1 Largest Group 4 | . . . . 4 4 . . 2 . 1 3 3 3 . . 1 Highest-Rated Group 141 | . . . . 71 71 . . 50 . 26 141 141 141 . . 40 Highest-Rated Ally 47 | . . . . 31 31 . . 30 . 26 47 47 47 . . 40 Total Orders . | . . . . . . . . . . . . . . . . . Ally Attacks 93 | . . . . 4 62 . . 13 . . 6 . 8 . . . Total Damage 1354 | . . . . 49 732 . . 205 . . 211 . 157 . . . Kills 17 | . . . . . 12 . . 2 . . 2 . 1 . . . Allies Corrupted . | . . . . . . . . . . . . . . . . . Allies Melted . | . . . . . . . . . . . . . . . . . Intel | -11 -10 -10 -10 -9 -8 -7 -6 -6 -6 -5 -4 -4 -4 -3 -2 -1 ------- Run | Yrd Mat Min Exi Min Mat Fac Fac Low Low Fac Fac Was Fac Res Res Acc Active Infowar (turns) 14787 | 20 1242 841 491 727 336 2840 1655 1733 384 1322 328 44 1819 294 248 463 Optics 4289 | . . . . . . . . . . 1093 328 44 1819 294 248 463 Sensors 525 | . . . . . . . . . 328 197 . . . . . . Terrain 3829 | . . . . . . . . . . 1005 324 44 1652 294 248 262 Structural 7990 | . . . . . . 2840 1655 1733 384 69 . . 304 294 248 463 Traps 1285 | . . . . . . . . . . . 327 44 914 . . . Seismic 3657 | 20 1242 841 491 727 336 . . . . . . . . . . . T.N.C. 282 | . . . . . . . 282 . . . . . . . . . Cloaking 838 | . . . . . . . . . . . . . . 291 248 299 Jamming 1316 | . . . . . . . . . . . . . 311 294 248 463 Robot Analysis Total . | . . . . . . . . . . . . . . . . . Derelict Logs Recovered 4 | . . . . 2 . . . 1 1 . . . . . . . Drone Launches . | . . . . . . . . . . . . . . . . . Drone Recoveries . | . . . . . . . . . . . . . . . . . Exploration | -11 -10 -10 -10 -9 -8 -7 -6 -6 -6 -5 -4 -4 -4 -3 -2 -1 ------------- Run | Yrd Mat Min Exi Min Mat Fac Fac Low Low Fac Fac Was Fac Res Res Acc Turns Passed 16413 | 80 1242 841 491 727 1858 2861 1655 1733 384 1345 328 44 1819 294 248 463 Spaces Moved 15390 | 61 737 539 345 453 1161 1855 1161 899 192 2406 833 119 3140 515 327 647 Core 2 | 2 . . . . . . . . . . . . . . . . Treads 7 | . . . . . 7 . . . . . . . . . . . Legs 4967 | . . . . . 978 1855 1161 750 192 31 . . . . . . Wheels 2458 | 59 737 539 345 453 176 . . 149 . . . . . . . . Hover . | . . . . . . . . . . . . . . . . . Flight 7956 | . . . . . . . . . . 2375 833 119 3140 515 327 647 Fastest Speed 25 | 50 95 140 140 140 115 108 111 115 190 29 29 29 25 26 31 31 Average Speed 80 | 92 137 140 140 145 124 121 113 183 190 33 29 29 28 32 31 32 Slowest Speed 260 | 100 140 140 140 150 260 190 115 190 190 190 29 29 110 114 101 111 Overloaded Moves . | . . . . . . . . . . . . . . . . . Propulsion Burnouts . | . . . . . . . . . . . . . . . . . Robots Hopped 26 | . . . . . . . . . . 2 8 . 15 1 . . Potential Cave-ins 2 | . . . . . . . . . . . 2 . . . . . Cave-ins Triggered . | . . . . . . . . . . . . . . . . . Exploration Rate (%) 53 | 3 98 94 61 94 97 44 30 90 25 50 26 95 64 14 9 21 Regions Visited 16 Branch Regions 5 Pre-discovered Areas 13 | . 4 1 1 1 3 3 . . . . . . . . . . Known Exits Taken 7 | . 1 . . . 1 1 . . . 1 . . 1 1 1 . Unknown Exits Taken 7 | 1 . 1 1 1 . . 1 1 1 . . . . . . . Scrap Searched 8 | . . 1 . 4 . . . 2 1 . . . . . . . Spaces Dug 170 | . 4 . . 18 . 1 10 22 . 34 6 . 46 11 7 11 Terrain Destroyed 509 | . 8 7 . 169 15 60 20 98 . 37 9 . 54 12 9 11 Melee 124 | . . . . . . . 10 . . 34 6 . 46 11 7 10 Projectile 57 | . 8 . . . 1 21 6 3 . 3 3 . 8 1 2 1 AOE 328 | . . 7 . 169 14 39 4 95 . . . . . . . . Terrain Rammed . | . . . . . . . . . . . . . . . . . Walls Destroyed . | . . . . . . . . . . . . . . . . . Machines Disabled . | . . . . . . . . . . . . . . . . . Actions | -11 -10 -10 -10 -9 -8 -7 -6 -6 -6 -5 -4 -4 -4 -3 -2 -1 --------- Run | Yrd Mat Min Exi Min Mat Fac Fac Low Low Fac Fac Was Fac Res Res Acc Total 18268 | 74 859 590 356 499 1463 2278 1391 947 207 2814 874 127 3871 616 461 841 Wait 1762 | . 26 22 . 8 159 251 141 1 12 264 1 9 549 64 113 142 Move 15325 | 60 736 538 344 452 1160 1854 1160 898 191 2401 818 118 3111 512 326 646 Hop 23 | . . . . . . . . . . 2 7 . 13 1 . . Pick Up 107 | 3 21 3 2 4 15 7 2 2 . 22 7 . 9 5 2 3 Fast Attach 75 | 7 . . 2 . 9 15 7 3 1 9 2 . 12 1 5 2 Attach 31 | . . . . . 5 1 1 1 1 8 2 . 6 2 . 4 Detach 21 | . . . . . 5 2 1 . . 6 1 . 4 . 1 1 Swap 102 | 1 11 3 1 2 14 13 12 8 . 5 . . 22 6 1 3 Drop 154 | . 12 4 7 6 24 27 9 3 . 17 7 . 22 8 4 4 Fire 378 | 3 53 20 . 27 69 89 42 26 2 17 3 . 23 1 2 1 Melee 265 | . . . . . . 7 11 . . 63 26 . 100 16 7 35 Ram . | . . . . . . . . . . . . . . . . . Kick 20 | . . . . . 3 12 5 . . . . . . . . . Crush . | . . . . . . . . . . . . . . . . . Escape Stasis . | . . . . . . . . . . . . . . . . . Rewire 5 | . . . . . . . . 5 . . . . . . . . Trap . | . . . . . . . . . . . . . . . . . Miscellaneous . | . . . . . . . . . . . . . . . . . Route ------- -11/Scrapyard -10/Materials (discovered 6 exits: *Mat x3 / *Min x2 / *Sub) -10/Mines (discovered 4 exits: *Mat x2 / *Exi / Sub) -10/Exiles -9/Mines (discovered 2 exits: *Mat x2) -8/Materials (discovered 4 exits: *Fac x3 / *Sto) -7/Factory (discovered 6 exits: *Fac x4 / *Low x2) -6/Factory -6/Lower Caves -6/Lower Caves -5/Factory (discovered 8 exits: *Fac x4 / *Upp x2 / *Ext x2) -4/Factory (discovered 6 exits: *Res x4 / Upp x2) -4/Waste -4/Factory (discovered 6 exits: *Res x4 / *Upp x2) -3/Research (discovered 3 exits: *Res x3) -2/Research -1/Access To Epsilon Eridani History --------- Turn | Location | Event 20 | -11/Scrapyard | Discovered new exit (range 16) 81 | -11/Scrapyard | Entered Materials 303 | -10/Materials | Build established: Mutant 432 | -10/Materials | Discovered new exit (range 6) 557 | -10/Materials | Identified exit to Mines 734 | -10/Materials | Discovered new exit (range 3) 807 | -10/Materials | Learned Storage terminal intel 852 | -10/Materials | Identified exit to Subcaves 852 | -10/Materials | Identified exit to Materials 852 | -10/Materials | Learned location of 1 exit from Materials 889 | -10/Materials | Learned location of Mines (-9) 965 | -10/Materials | Learned location of Recycling (-8) 997 | -10/Materials | Loaded intel: 8 terminal locations 1323 | -10/Materials | Entered Mines 1400 | -10/Mines | YI-UF0 nonchalantly dropped a Grenade Launcher on the ground 1445 | -10/Mines | Discovered exit to Materials (range 10) 1583 | -10/Mines | Learned location of Storage (-8) 1728 | -10/Mines | Deemed a non-threat by the Exiles lab entrance 1729 | -10/Mines | Discovered new exit (range 5) 1798 | -10/Mines | Discovered exit to Materials (range 7) 2164 | -10/Mines | Entered Exiles 2183 | -10/Exiles | Discovered new exit (range 15) 2199 | -10/Exiles | Met 8R-AWN 2222 | -10/Exiles | Met EX-HEX 2265 | -10/Exiles | Met EX-BIN 2283 | -10/Exiles | Aligned with FarCom system 2284 | -10/Exiles | Given EX-Vault access code 2319 | -10/Exiles | Opened EX-Vault 2330 | -10/Exiles | Found Flying Fortress v7 2360 | -10/Exiles | Warned to stay clear of 0b10 Research branches 2401 | -10/Exiles | Met EX-DEC 2411 | -10/Exiles | Learned location of Zion (-6) 2655 | -10/Exiles | Left Exiles lab with Flying Fortress v7 2655 | -10/Exiles | Entered Mines 2737 | -9/Mines | Learned Materials terminal intel 2906 | -9/Mines | Discovered new exit (range 9) 2981 | -9/Mines | Escorted by a lone wolf Derelict 3096 | -9/Mines | Found a Scrap Suit stashed away for nefarious purposes 3100 | -9/Mines | Found Scrap Suit 3133 | -9/Mines | Assisted by bots powering up and referring to "LRC-V3" 3263 | -9/Mines | Discovered new exit (range 11) 3300 | -9/Mines | Received a Rocket Launcher from a helpful Derelict 3382 | -9/Mines | Entered Materials 3382 | -8/Materials | Accompanied by 4 allies 3382 | -8/Materials | Evolved 4 slots: Propulsion x2, Utility x2 3383 | -8/Materials | Identified exit to Factory 3384 | -8/Materials | Loaded intel: 12 terminal locations 3661 | -8/Materials | Discovered exit to Factory (range 15) 3702 | -8/Materials | Build established: Hacker-Mutant 3787 | -8/Materials | Identified exit to Storage 3809 | -8/Materials | Met 7R-MNS 4365 | -8/Materials | Learned Storage non-interactive machine intel 4404 | -8/Materials | Central database locked down 4423 | -8/Materials | Learned Factory fabricator intel 4473 | -8/Materials | Learned location of 2 exits from Factory 4565 | -8/Materials | Learned Factory recycling unit intel 4583 | -8/Materials | Garrison activated, responded to threat 4627 | -8/Materials | Learned location of 1 exit from Recycling 4812 | -8/Materials | Repaired Imp. Carbon-fiber Leg 4858 | -8/Materials | Repaired Imp. Carbon-fiber Leg 5240 | -8/Materials | Entered Factory 5240 | -7/Factory | Evolved 2 slots: Propulsion x1, Utility x1 5241 | -7/Factory | Caught up to 7R-MNS 5241 | -7/Factory | Identified exit to Lower Caves 5241 | -7/Factory | Identified exit to Factory 5242 | -7/Factory | Loaded intel: 6 fabricator locations 5243 | -7/Factory | Loaded intel: 6 recycling unit locations 5567 | -7/Factory | Garrison activated, responded to threat 5840 | -7/Factory | Discovered exit to Lower Caves (range 16) 6165 | -7/Factory | Repaired Imp. Carbon-fiber Leg 6204 | -7/Factory | Repaired Carbon-fiber Leg 7200 | -7/Factory | Central database locked down 7358 | -7/Factory | Fabricated Imp. Flight Unit? 7463 | -7/Factory | Learned location of 1 exit from Proximity Caves 7514 | -7/Factory | Learned Extension trap positions 7554 | -7/Factory | Learned location of Upper Caves (-5) 7585 | -7/Factory | Learned location of 1 exit from Hub_04(d) 7605 | -7/Factory | Learned location of Proximity Caves (-3) 7615 | -7/Factory | Learned location of 1 exit from Proximity Caves 7623 | -7/Factory | Learned location of Proximity Caves (-5) 8101 | -7/Factory | Entered another Factory area 8101 | -6/Factory | Evolved 2 slots: Propulsion x1, Utility x1 8102 | -6/Factory | Caught up to 7R-MNS 8974 | -6/Factory | Build established: Scavenger-Mutant 9560 | -6/Factory | Discovered new exit (range 16) 9756 | -6/Factory | Entered Lower Caves 9811 | -6/Lower Caves | Attracted the attention of an 0b10 outpost 9862 | -6/Lower Caves | Lost 3 parts (3n) 9873 | -6/Lower Caves | Destroyed 9 combat bots 10459 | -6/Lower Caves | Learned Factory terminal intel 11434 | -6/Lower Caves | Discovered new exit (range 6) 11464 | -6/Lower Caves | Spotted B-75 Beast 11489 | -6/Lower Caves | Entered another Lower Caves area 11561 | -6/Lower Caves | Attracted the attention of an 0b10 checkpoint 11825 | -6/Lower Caves | Discovered new exit (range 15) 11873 | -6/Lower Caves | Entered Factory 11873 | -5/Factory | Evolved 2 slots: Power x1, Propulsion x1 11874 | -5/Factory | Loaded intel: 28 terminal locations 11976 | -5/Factory | Lost 5 parts (1p3n1u) 12097 | -5/Factory | Identified exit to Upper Caves 12097 | -5/Factory | Identified exit to Extension 12352 | -5/Factory | Build established: Hacker-Scout 12369 | -5/Factory | Spotted B-75 Beast 12423 | -5/Factory | Identified exit to Factory 12886 | -5/Factory | Repaired Mni. Assault Cannon 13136 | -5/Factory | Fabricated Diametric Drive? 13197 | -5/Factory | Found Prototype Processor 13197 | -5/Factory | Identified Exp. Targeting Computer 13218 | -5/Factory | Entered another Factory area 13218 | -4/Factory | Evolved 2 slots: Utility x2 13335 | -4/Factory | Discovered new exit (range 17) 13341 | -4/Factory | Identified exit to Upper Caves 13404 | -4/Factory | Identified exit to Research 13484 | -4/Factory | Central database locked down 13486 | -4/Factory | Found Prototype Hackware 13486 | -4/Factory | Identified Exp. System Shield 13546 | -4/Factory | Sucked down chute 13546 | -4/Factory | Entered Waste 13551 | -4/Waste | Spotted C-40 Crusher 13553 | -4/Waste | Spotted C-40 Crusher 13561 | -4/Waste | EMP discharged 13561 | -4/Waste | Spotted C-40 Crusher 13564 | -4/Waste | Spotted C-40 Crusher 13566 | -4/Waste | Spotted C-40 Crusher 13567 | -4/Waste | Discovered new exit (range 14) 13567 | -4/Waste | Spotted C-40 Crusher 13581 | -4/Waste | 3 allies followed down the chute 13590 | -4/Waste | Entered Factory 13713 | -4/Factory | Discovered exit to Research (range 7) 13767 | -4/Factory | Discovered exit to Upper Caves (range 12) 14687 | -4/Factory | Repaired Mni. Assault Cannon 14750 | -4/Factory | Repaired Imp. Cesium-ion Thruster 14878 | -4/Factory | Discovered exit to Upper Caves (range 14) 15308 | -4/Factory | Repaired Cld. VTOL Module 15360 | -4/Factory | Repaired Imp. Actuator Array 15409 | -4/Factory | Entered Research 15409 | -3/Research | Evolved 2 slots: Propulsion x1, Utility x1 15649 | -3/Research | Identified exit to Research 15661 | -3/Research | Build established: Scavenger-Ninja 15703 | -3/Research | Entered another Research area 15703 | -2/Research | Evolved 2 slots: Utility x2 15749 | -2/Research | Found Prototype Processor 15749 | -2/Research | Identified Exp. Core Analyzer 15932 | -2/Research | Discovered new exit (range 3) 15951 | -2/Research | Identified exit to Access 15951 | -2/Research | Entered Access 15951 | -1/Access | Evolved 2 slots: Utility x2 16026 | -1/Access | Identified exit to Surface 16140 | -1/Access | Build established: Hacker-Ninja 16281 | -1/Access | Lost 3 parts (1p2u) 16414 | *** | Escaped! Last Messages --------------- 16372_ Destroyed Structural Scanner. 16372_ Destroyed Terrain Scanner. 16372_ U-05 Engineer destroyed. 16373_ NI6Y9TV/SSCTQZYIAXRF 16387_ Dropped Imp. Medium Armor Plating. 16388_ System corrupted: Matter fused (-9). 16389_ Acquired Lyr. Light Armor Plating. 16390_ Sneak attack on T-07 Excavator. 16390_ T-07 Excavator suffers critical hit (Impale). 16390_ Destroyed Lgt. Ion Engine. 16390_ T-07 Excavator destroyed. 16394_ ALERT: Potential suspicious activity detected, Programmers report to Access Zone 1G. 16394_ Acquired 17 matter. 16395_ U-05 Engineer builds a Wall. 16403_ System corrupted: Heat flow error (+163). 16408_ Connecting with Terminal... >>Open(Door) Sealed Barrier opened. 16409_ The Access Shell folds into the floor. Map ----- +----------------------------------------------------+ | ??????????????????????????????????????????? # # | | ??????????????????????????????????????????? # # | | ??????????????????????????????????????????? # # | | ??????????????????????????????????????????? # ### | | ??????????????????????????????????????????? + | | ??????????????????????????????????????????? # | | ??????????????????????????????????????????? # ### | | ??????????????????????????????????????????? # ### | | ??????????????????????????????????????????? # ##? | | ???????????################################## ##? | | ?????????? =################################# ##? | | ?????????= % ##? | | ?????????? ##? | | ??????????????????### ""############## ###? | | ??????????????????### ""############## ###? | | ???????????????????## ""##??????????## ##?? | | ???????????????????## T##??????????## ##?? | | ???????????????????## ""##??????????## ##?? | | ??????????????????### ""###?????????## ##?? | | ??????????????????### ""###?????????## ##?? | | ??????????????????## ##?????????## ##?? | | ??????????????????### ###?????????## ##?? | | ??????????????????### ###?????????## ##?? | | ???????????????????## ##??????????## ?? | | ???????????????????## ##??????????## ???? | | ???????????????????## @" ##???????????? ???? | | ???????????????????## "" ##???????????? ???? | | ???????????????????## ##???????????? ???? | | ???????????????????## ##????????BB?? ???? | | ???????????????????## ##????????BB?? ???? | | ???????????????????##""""""""""##???????????? ???? | | ???????????????????##"????????"##???????????? ???? | | ?????????????????????????????????????????????????? | | ?????????????????????????????????????????????????? | | ?????????????????????????????????????????????????? | | ??????????????????????BB????BB???????????????????? | | ??????????????????????BB????BB???????????????????? | | ?????????????????????????????????????????????????? | | ?????????????????????????????????????????????????? | | ?????????????????????????????????????????????????? | | ?????????????????????????????????????????????????? | | ?????????????????????????????????????????????????? | | ?????????????????????????????????????????????????? | | ?????????????????????????????????????????????????? | | ?????????????????????????????????????????????????? | | ?????????????????????????????????????????????????? | | ?????????????????????????????????????????????????? | | ?????????????????????????????????????????????????? | | ?????????????????????????????????????????????????? | | ?????????????????????????????????????????????????? | +----------------------------------------------------+ Best States ------------- Heat Dissipation 66 Energy Generation 42 Energy Capacity 290 Matter Stores 300 Matter Capacity 300 Sight Range 20 Robot Scan Range 15 Terrain Scan Range 16 Terrain Scan Density 210 Jamming Range 16 Cloak Strength 2 Corruption Block 15 Armor Coverage 225 Resistance: KI 20 Resistance: TH 20 Resistance: EX 20 Resistance: EM 20 Resistance: I 20 Resistance: S 20 Resistance: P 20 Evasion (%) 65 Targeting Accuracy 16 Melee Accuracy 8 Core Analysis 8 Recoil Reduction 2 Offensive Hacking 36 Defensive Hacking 16 Authchip Count 1 Item Schematics ----------------- Flight Unit | -8/Materials | Scanalyzed Imp. Flight Unit | -7/Factory | Hacked Cld. VTOL Module | -5/Factory | Hacked Adv. Target Analyzer | -4/Factory | Hacked Adv. Weapon Cycler | -4/Factory | Hacked Robot Schematics ------------------ None Fabricated ------------ Imp. Flight Unit | x1 | -7/Factory Diametric Drive | x1 | -5/Factory | Preloaded Repaired ---------- Imp. Carbon-fiber Leg | 38% | -8/Materials Imp. Carbon-fiber Leg | 38% | -8/Materials Imp. Carbon-fiber Leg | 49% | -7/Factory Carbon-fiber Leg | 60% | -7/Factory Mni. Assault Cannon | 21% | -5/Factory Mni. Assault Cannon | 68% | -4/Factory Imp. Cesium-ion Thruster | 83% | -4/Factory Cld. VTOL Module | 53% | -4/Factory Imp. Actuator Array | 61% | -4/Factory Studied --------- Flight Unit | -8/Materials | Hacked Lgt. Nuclear Core | -8/Materials | Hacked Autogun | -8/Materials | Hacked Rocket Launcher | -8/Materials | Hacked Arm. Wheel | -8/Materials | Hacked Aluminum Leg | -7/Factory | Hacked Assault Cannon | -7/Factory | Hacked Nuclear Core | -7/Factory | Hacked Imp. Carbon-fiber Leg | -7/Factory | Hacked Mic. Nuclear Core | -5/Factory | Hacked Gauss Rifle | -5/Factory | Hacked Flexi-carbon Leg | -5/Factory | Hacked Adv. Plasma Cannon | -5/Factory | Hacked Chainsword | -4/Factory | Hacked Nuclear Pulse Array | -4/Factory | Hacked Lgt. Deuterium Engine | -4/Factory | Hacked Lgt. Antimatter Reactor | -4/Factory | Hacked Mic. Fission Core | -4/Factory | Hacked Hardcell Cannon | -4/Factory | Hacked Alien Tech Used ----------------- None Achievements -------------- Ghost 'Em Insider Info Challenges ------------ None Game ------ Seed SiegeInsulatedCorpse Manual? 0 Play Time 04:30:44 Cumulative 154.6 hours Start 2026.01.24 @ 17:27:40 End 2026.01.27 @ 12:02:57 Sessions 7 Manual Loads 0 Difficulty Adventurer Special Mode None Game No. 59 Rogue 0 Adventurer 55 Explorer 4 Win Type 0 Total 4 Types 4/0/0/0/0/0/0/0/0/0 Lore% 40 Gallery% 49 Achievement% 38 Wizard Run 0 Options --------- Layout 0 ASCII 0 Keyboard 1 Movement Numpad Keybinds 0 Fullscreen 2 Font 36/Smallcaps Map View 76x50 Zoom Use 0% Tactical HUD 1 Map Filters NONE Filters NONE Steam 1 RUN: 31f9e5ba-e7d8-47c4-9a6a-8ff076ff239f